fUSD/lending_fUSD_20260112
["ID","MTS","AMOUNT","RATE_DAILY","PERIOD"]
[401431557,1768207841631,-331.18764993,0.00016782,2]
[401431558,1768207841641,-150.0,0.00016782,2]
[401431559,1768207841650,-150.0,0.000168,2]
[401431560,1768207841660,-150.0,0.000168,2]
[401431561,1768207841669,-331.18764993,0.000168,2]
[401431562,1768207841679,-150.0,0.000168,2]
[401431563,1768207841688,-150.0,0.000168,2]
[401431564,1768207841698,-168289.97579307,0.000168,2]
[401431565,1768207841713,-5184.696912,0.000168,2]
[401431566,1768207841728,-1696.19118442,0.000168,2]
[401431567,1768207842109,-324.86312763,0.000168,2]
[401431568,1768207842122,-15834.32719608,0.000168,2]
[401431569,1768207842131,-1047.04298225,0.00016814,2]
[401431570,1768207842141,-331.18764993,0.00016818,2]
[401431571,1768207842151,-500.0,0.00016823,2]
[401431572,1768207842160,-2247.8,0.00016829,2]
[401431573,1768207842170,-150.0,0.0001683,2]
[401431574,1768207842179,-331.18764993,0.00016836,2]
[401431575,1768207842188,-150.0,0.00016843,2]
[401431576,1768207842197,-331.18764993,0.00016855,2]
[401431577,1768207842206,-331.18764993,0.00016873,2]
[401431578,1768207842215,-6.1605353,0.00016874,2]
[401431579,1768207842226,-226.7694647,0.00016874,2]
[401431580,1768207842236,-150.0,0.00016875,2]
[401431581,1768207842245,-150.0,0.00016875,2]
[401431582,1768207842254,-150.0,0.00016875,2]
[401431583,1768207842264,-150.0,0.00016875,2]
[401431584,1768207842274,-331.18764993,0.00016891,2]
[401431585,1768207842283,-306.57,0.00016892,2]
[401431586,1768207842292,-150.0,0.00016892,2]
[401431587,1768207842300,-1400.0,0.000169,6]
[401431588,1768207842309,-331.18764993,0.00016909,2]
[401431589,1768207842319,-150.0,0.0001692,2]
[401431590,1768207842329,-150.0,0.0001692,2]
[401431591,1768207842339,-331.18764993,0.00016927,2]
[401431592,1768207842348,-277.21,0.00016931,2]
[401431593,1768207842358,-2247.8,0.00016935,2]
[401431594,1768207842368,-331.18764993,0.00016945,2]
[401431595,1768207842379,-1131.10845788,0.0001695,2]
[401431596,1768207842389,-150.0,0.0001695,2]
[401431597,1768207842401,-150.0,0.0001695,2]
[401431598,1768207842411,-331.18764993,0.00016964,2]
[401431599,1768207842421,-150.0,0.00016971,2]
[401431600,1768207842432,-150.0,0.00016971,2]
[401431601,1768207842442,-4609.0,0.00016976,2]
[401431602,1768207842452,-331.18764993,0.00016982,2]
[401431603,1768207842461,-150.0,0.00016987,2]
[401431604,1768207842471,-150.0,0.00016987,2]
[401431605,1768207842480,-637.33617149,0.00016989,2]
[401431606,1768207842489,-331.18764993,0.00017,2]
[401431607,1768207842498,-150.0,0.00017,2]
[401431608,1768207842507,-250.0,0.00017,2]
[401431609,1768207842517,-1152.0,0.00017004,2]
[401431610,1768207842525,-150.0,0.0001701,2]
[401431611,1768207842535,-500.0,0.00017013,2]
[401431612,1768207842544,-500.0,0.00017013,2]
[401431613,1768207842553,-500.0,0.00017013,2]
[401431614,1768207842562,-331.18764993,0.00017018,2]
[401431615,1768207842571,-150.0,0.00017025,2]
[401431616,1768207842580,-150.0,0.00017025,2]
[401431617,1768207842590,-150.0,0.00017031,2]
[401431618,1768207842599,-331.18764993,0.00017036,2]
[401431619,1768207842607,-150.0,0.0001704,2]
[401431620,1768207842616,-162.0,0.0001704,2]
[401431621,1768207842626,-483.1,0.00017041,2]
[401431622,1768207842635,-483.1,0.00017041,2]
[401431623,1768207842644,-661.95,0.00017041,2]
[401431624,1768207842654,-483.1,0.00017041,2]
[401431625,1768207842666,-661.95,0.00017041,2]
[401431626,1768207842675,-483.1,0.00017041,2]
[401431627,1768207842684,-661.95,0.00017041,2]
[401431628,1768207842693,-93.44274016,0.00017041,2]
[401431629,1768207842705,-387.83725984,0.00017041,2]
[401431630,1768207842714,-661.95,0.00017041,2]
[401431631,1768207842725,-661.95,0.00017041,2]
[401431632,1768207842734,-2247.8,0.00017042,2]
[401431633,1768207842744,-331.18764993,0.00017055,2]
[401431634,1768207842753,-500.0,0.00017068,2]
[401431635,1768207842764,-500.0,0.00017073,2]
[401431636,1768207842774,-500.64635657,0.00017073,2]
[401431637,1768207842783,-173.30819609,0.00017073,2]
[401431638,1768207842794,-500.0,0.00017073,2]
[401431639,1768207842803,-500.0,0.00017073,2]
[401431640,1768207842812,-500.0,0.00017073,2]
[401431642,1768207842825,-500.0,0.00017073,2]
[401431644,1768207842834,-500.0,0.00017073,2]
[401431646,1768207842843,-500.0,0.00017073,2]
[401431649,1768207842852,-500.0,0.00017073,2]
[401431651,1768207842863,-500.84079337,0.00017073,2]
[401431653,1768207842872,-540.4577012,0.00017073,2]
[401431655,1768207842882,-166.96227274,0.00017073,2]
[401431657,1768207842892,-500.0,0.00017073,2]
[401431660,1768207842901,-500.0,0.00017073,2]
[401431662,1768207842910,-500.51842778,0.00017073,2]
[401431663,1768207842921,-500.0,0.00017073,2]
[401431664,1768207842930,-500.0,0.00017073,2]
[401431665,1768207842939,-501.67211681,0.00017073,2]
[401431666,1768207842949,-500.83788468,0.00017073,2]
[401431667,1768207842959,-500.57959935,0.00017073,2]
[401431668,1768207842968,-163.4155148,0.00017073,2]
[401431669,1768207842978,-500.84213941,0.00017073,2]
[401431670,1768207842988,-500.38035534,0.00017073,2]
[401431671,1768207842997,-500.26791262,0.00017073,2]
[401431672,1768207843009,-500.0,0.00017073,2]
[401431673,1768207843019,-503.00247421,0.00017073,2]
[401431674,1768207843029,-162.59101262,0.00017073,2]
[401431675,1768207843038,-647.42016729,0.00017073,2]
[401431676,1768207843048,-503.84192068,0.00017073,2]
[401431677,1768207843058,-9.67567118,0.00017073,2]
[401431678,1768207843069,-490.32432882,0.00017073,2]
[401431679,1768207843078,-500.19211788,0.00017073,2]
[401431680,1768207843087,-501.85422751,0.00017073,2]
[401431681,1768207843096,-500.0,0.00017073,2]
[401431682,1768207843107,-500.85931304,0.00017073,2]
[401431683,1768207843117,-500.0,0.00017073,2]
[401431684,1768207843128,-500.0,0.00017073,2]
[401431685,1768207843137,-169.17232811,0.00017073,2]
[401431686,1768207843147,-500.32712274,0.00017073,2]
[401431687,1768207843157,-500.53829083,0.00017073,2]
[401431688,1768207843166,-331.18764993,0.00017073,2]
[401431689,1768207843175,-331.18764993,0.00017091,2]
[401431690,1768207843184,-150.0,0.000171,2]
[401431691,1768207843194,-150.0,0.000171,2]
[401431692,1768207843203,-150.0,0.000171,2]
[401431693,1768207843212,-150.0,0.000171,2]
[401431694,1768207843221,-150.0,0.000171,2]
[401431695,1768207843230,-150.0,0.000171,2]
[401431696,1768207843239,-150.0,0.000171,2]
[401431697,1768207843249,-30000.0,0.000171,2]
[401431698,1768207843258,-1000.0,0.000171,2]
[401431699,1768207843267,-331.18764993,0.00017109,2]
[401431700,1768207843276,-331.18764993,0.00017127,2]
[401431701,1768207843285,-1063.57,0.00017129,2]
[401431702,1768207843295,-6157.84376205,0.0001713,2]
[401431703,1768207843304,-331.18764993,0.00017145,2]
[401431704,1768207843313,-2247.8,0.00017148,2]
[401431705,1768207843322,-150.0,0.0001716,2]
[401431706,1768207843331,-331.18764993,0.00017164,2]
[401431707,1768207843341,-150.0,0.00017169,2]
[401431708,1768207843350,-150.0,0.00017175,2]
[401431709,1768207843359,-150.0,0.00017175,2]
[401431710,1768207843368,-1110.24,0.00017178,2]
[401431711,1768207843379,-171.53,0.00017178,2]
[401431712,1768207843389,-179.28,0.00017178,2]
[401431713,1768207843398,-171.53,0.00017178,2]
[401431714,1768207843407,-171.53,0.00017178,2]
[401431715,1768207843417,-179.28,0.00017178,2]
[401431716,1768207843427,-179.28,0.00017178,2]
[401431717,1768207843436,-179.28,0.00017178,2]
[401431718,1768207843445,-179.28,0.00017178,2]
[401431720,1768207843456,-331.18764993,0.00017182,2]
[401431721,1768207843465,-158.73335703,0.00017186,2]
[401431722,1768207843476,-150.0,0.0001719,2]
[401431723,1768207843486,-331.18764993,0.000172,2]
[401431724,1768207843495,-150.0,0.000172,2]
[401431725,1768207843504,-469.78735424,0.0001721,2]
[401431726,1768207843514,-150.0,0.00017212,2]
[401431727,1768207843523,-150.0,0.00017212,2]
[401431728,1768207843532,-151.0,0.00017217,2]
[401431729,1768207843542,-688.49839244,0.00017217,2]
[401431730,1768207843552,-331.18764993,0.00017218,2]
[401431731,1768207843561,-150.0,0.00017229,2]
[401431732,1768207843571,-150.0,0.00017229,2]
[401431733,1768207843580,-2278.0,0.00017235,2]
[401431734,1768207843589,-331.18764993,0.00017236,2]
[401431735,1768207843599,-150.0,0.0001725,2]
[401431736,1768207843608,-150.0,0.0001725,2]
[401431737,1768207843617,-331.18764993,0.00017255,2]
[401431738,1768207843628,-2247.8,0.00017255,2]
[401431739,1768207843638,-331.18764993,0.00017273,2]
[401431740,1768207843647,-150.0,0.0001728,2]
[401431741,1768207843656,-150.0,0.0001728,2]
[401431742,1768207843665,-170.3,0.00017286,2]
[401431743,1768207843675,-331.18764993,0.00017291,2]
[401431744,1768207843684,-1800.0,0.000173,6]
[401431745,1768207843694,-155.29,0.00017306,2]
[401431746,1768207843703,-150.0,0.00017308,2]
[401431747,1768207843712,-331.18764993,0.00017309,2]
[401431748,1768207843721,-1000.0,0.00017311,2]
[401431749,1768207843731,-150.0,0.00017325,2]
[401431750,1768207843740,-150.0,0.00017325,2]
[401431751,1768207843749,-150.0,0.00017325,2]
[401431752,1768207843758,-150.0,0.00017325,2]
[401431753,1768207843767,-331.18764993,0.00017327,2]
[401431754,1768207843776,-331.18764993,0.00017345,2]
[401431755,1768207843786,-150.0,0.00017357,2]
[401431756,1768207843795,-2247.8,0.00017361,2]
[401431757,1768207843805,-155.29,0.00017362,2]
[401431758,1768207843814,-331.18764993,0.00017364,2]
[401431759,1768207843826,-150.0,0.0001737,2]
[401431760,1768207843836,-2278.0,0.00017382,2]
[401431761,1768207843845,-331.18764993,0.00017382,2]
[401431762,1768207843855,-150.0,0.000174,2]
[401431763,1768207843866,-150.0,0.000174,2]
[401431764,1768207843877,-331.18764993,0.000174,2]
[401431765,1768207843887,-150.0,0.000174,2]
[401431766,1768207843896,-150.0,0.000174,2]
[401431767,1768207843906,-1036.60059324,0.000174,6]
[401431768,1768207843957,-1263.39940676,0.000174,6]
[401431769,1768207843967,-332.33,0.0001741,2]
[401431770,1768207843978,-331.18764993,0.00017418,2]
[401431771,1768207843987,-331.18764993,0.00017436,2]
[401431772,1768207843997,-150.0,0.00017437,2]
[401431773,1768207844006,-150.0,0.00017437,2]
[401431774,1768207844015,-150.0,0.00017446,2]
[401431775,1768207844025,-331.18764993,0.00017455,2]
[401431776,1768207844034,-150.0,0.0001746,2]
[401431777,1768207844044,-2247.8,0.00017468,2]
[401431778,1768207844055,-331.18764993,0.00017473,2]
[401431779,1768207844066,-150.0,0.00017475,2]
[401431780,1768207844076,-150.0,0.00017475,2]
[401431781,1768207844085,-150.0,0.00017486,2]
[401431782,1768207844095,-150.0,0.00017486,2]
[401431783,1768207844105,-306.28594561,0.00017488,2]
[401431784,1768207844115,-691.39774486,0.00017488,2]
[401431785,1768207844125,-331.18764993,0.00017491,2]
[401431786,1768207844135,-2000.0,0.000175,2]
[401431787,1768207844145,-400.0,0.000175,6]
[401431788,1768207844155,-331.18764993,0.00017509,2]
[401431789,1768207844164,-150.0,0.0001752,2]
[401431790,1768207844175,-1101.0,0.00017524,2]
[401431791,1768207844185,-331.18764993,0.00017527,2]
[401431792,1768207844196,-331.18764993,0.00017545,2]
[401431793,1768207844206,-150.0,0.0001755,2]
[401431794,1768207844216,-150.0,0.0001755,2]
[401431795,1768207844226,-150.0,0.0001755,2]
[401431796,1768207844236,-150.0,0.0001755,2]
[401431797,1768207844246,-150.0,0.0001755,2]
[401431798,1768207844257,-331.18764993,0.00017564,2]
[401431799,1768207844269,-2247.8,0.00017574,2]
[401431800,1768207844281,-2424.69789246,0.0001758,2]
[401431802,1768207844293,-414.73410754,0.0001758,2]
[401431803,1768207844303,-187.031,0.0001758,2]
[401431805,1768207844313,-331.18764993,0.00017582,2]
[401431807,1768207844321,-150.0,0.00017585,2]
[401431809,1768207844331,-1000.0,0.000176,2]
[401431811,1768207844340,-331.18764993,0.000176,2]
[401431813,1768207844350,-150.0,0.000176,2]
[401431815,1768207844359,-400.0,0.000176,6]
[401431817,1768207844369,-150.0,0.00017614,2]
[401431819,1768207844379,-331.18764993,0.00017618,2]
[401431821,1768207844388,-501.68963282,0.00017621,2]
[401431823,1768207844398,-1000.0,0.00017621,2]
[401431825,1768207844407,-604.83613644,0.00017621,2]
[401431827,1768207844416,-1001.98142269,0.00017621,2]
[401431829,1768207844426,-1002.68294103,0.00017621,2]
[401431831,1768207844435,-1001.39881462,0.00017621,2]
[401431833,1768207844443,-1001.49774725,0.00017621,2]
[401431834,1768207844452,-615.72392014,0.00017621,2]
[401431836,1768207844462,-500.52073568,0.00017621,2]
[401431838,1768207844471,-1000.0,0.00017621,2]
[401431840,1768207844480,-1000.0,0.00017621,2]
[401431842,1768207844489,-1000.0,0.00017621,2]
[401431844,1768207844499,-502.50985622,0.00017621,2]
[401431847,1768207844509,-501.81552952,0.00017621,2]
[401431849,1768207844518,-1000.0,0.00017621,2]
[401431850,1768207844527,-1000.0,0.00017621,2]
[401431852,1768207844536,-1000.0,0.00017621,2]
[401431854,1768207844547,-150.0,0.00017625,2]
[401431856,1768207844556,-150.0,0.00017625,2]
[401431858,1768207844565,-500.0,0.00017626,2]
[401431860,1768207844574,-510.98377513,0.00017626,2]
[401431862,1768207844583,-513.96117213,0.00017626,2]
[401431864,1768207844592,-331.18764993,0.00017636,2]
[401431866,1768207844602,-317.89217192,0.00017637,2]
[401431868,1768207844611,-2987.79350318,0.00017637,2]
[401431870,1768207844620,-150.0,0.0001764,2]
[401431872,1768207844632,-150.0,0.0001764,2]
[401431874,1768207844641,-2526.34474309,0.0001764,2]
[401431876,1768207844651,-331.18764993,0.00017655,2]
[401431878,1768207844660,-150.0,0.00017662,2]
[401431880,1768207844669,-150.0,0.00017662,2]
[401431882,1768207844679,-500.0,0.00017671,2]
[401431884,1768207844688,-97.16454095,0.00017673,2]
[401431914,1768207845335,-234.02310898,0.00017673,2]
[401431915,1768207845346,-1791.54088989,0.00017676,2]
[401431916,1768207845694,-259.54911011,0.00017676,2]
[401431917,1768207845704,-306.57,0.0001768,2]
[401431918,1768207845715,-2247.8,0.00017681,2]
[401431919,1768207845726,-2987.79350316,0.0001769,2]
[401431920,1768207845736,-331.18764993,0.00017691,2]
[401431921,1768207845745,-10407.08909028,0.00017699,2]
[401431922,1768207845759,-332.9023218,0.00017699,2]
[401431923,1768207845770,-1392.10538075,0.00017699,2]
[401431925,1768207845826,-15914.90320717,0.00017699,2]
[401431927,1768207845835,-150.0,0.000177,2]
[401431929,1768207845845,-150.0,0.000177,2]
[401431930,1768207845855,-4307.04643237,0.000177,2]
[401431932,1768207845865,-400.0,0.000177,6]
[401431934,1768207845876,-331.18764993,0.00017709,2]
[401431936,1768207845886,-150.0,0.00017723,2]
[401431938,1768207845900,-331.18764993,0.00017727,2]
[401431939,1768207845910,-150.0,0.0001773,2]
[401431941,1768207845921,-150.0,0.0001773,2]
[401431944,1768207845931,-262.49854168,0.00017736,2]
[401431945,1768207845942,-630.29424855,0.00017736,2]
[401431946,1768207845951,-1063.57,0.00017736,2]
[401431947,1768207845961,-1063.57,0.00017736,2]
[401431949,1768207845970,-1063.57,0.00017736,2]
[401431950,1768207845980,-1063.57,0.00017736,2]
[401431951,1768207845989,-1063.57,0.00017736,2]
[401431952,1768207846000,-2987.79350316,0.00017742,2]
[401431953,1768207846009,-150.0,0.00017743,2]
[401431954,1768207846019,-150.0,0.00017743,2]
[401431955,1768207846029,-331.18764993,0.00017745,2]
[401431956,1768207846038,-500.0,0.00017747,2]
[401431957,1768207846047,-500.0,0.00017747,2]
[401431958,1768207846057,-500.0,0.00017747,2]
[401431959,1768207846067,-500.0,0.00017747,2]
[401431960,1768207846078,-500.0,0.00017747,2]
[401431961,1768207846087,-2278.0,0.00017759,2]
[401431962,1768207846098,-150.0,0.0001776,2]
[401431963,1768207846109,-331.18764993,0.00017764,2]
[401431964,1768207846119,-151.0,0.00017765,2]
[401431965,1768207846132,-359.57914319,0.00017765,2]
[401431966,1768207846141,-317.89217191,0.00017769,2]
[401431967,1768207846150,-150.0,0.00017775,2]
[401431968,1768207846160,-150.0,0.00017775,2]
[401431969,1768207846169,-150.0,0.00017775,2]
[401431970,1768207846178,-150.0,0.00017775,2]
[401431971,1768207846187,-331.18764993,0.00017782,2]
[401431972,1768207846196,-2247.8,0.00017787,2]
[401431973,1768207846206,-2987.79350316,0.00017795,2]
[401431974,1768207846215,-331.18764993,0.000178,2]
[401431975,1768207846225,-150.0,0.000178,2]
[401431976,1768207846234,-1000.0,0.000178,2]
[401431977,1768207846245,-400.0,0.000178,6]
[401431978,1768207846255,-156.587,0.00017807,2]
[401431979,1768207846265,-500.0,0.00017817,2]
[401431980,1768207846274,-331.18764993,0.00017818,2]
[401431981,1768207846283,-150.0,0.0001782,2]
[401431982,1768207846292,-1977.11509,0.0001782,2]
[401431983,1768207846301,-1977.11508,0.0001782,2]
[401431984,1768207846310,-910.24842296,0.0001782,2]
[401431985,1768207846320,-277.21,0.00017822,2]
[401431986,1768207846331,-1063.57,0.00017829,2]
[401431987,1768207846340,-25000.0,0.0001783,3]
[401431988,1768207846351,-83171.52894996,0.0001783,2]
[401431989,1768207846361,-1977.11509,0.0001783,2]
[401431990,1768207846370,-331.18764993,0.00017836,2]
[401431991,1768207846381,-25000.0,0.00017838,3]
[401431992,1768207846390,-25000.0,0.00017847,3]
[401431993,1768207846400,-2987.79350316,0.00017847,2]
[401431994,1768207846410,-150.0,0.0001785,2]
[401431996,1768207846419,-150.0,0.0001785,2]
[401431997,1768207846428,-331.18764993,0.00017855,2]
[401431998,1768207846438,-200.0,0.00017855,2]
[401431999,1768207846447,-25000.0,0.00017856,3]
[401432000,1768207846456,-200.0,0.00017856,2]
[401432001,1768207846465,-1977.11509,0.0001786,2]
[401432002,1768207846475,-150.0,0.00017862,2]
[401432003,1768207846484,-25000.0,0.00017865,3]
[401432004,1768207846493,-150.0,0.00017871,2]
[401432005,1768207846503,-331.18764993,0.00017873,2]
[401432006,1768207846512,-25000.0,0.00017874,3]
[401432007,1768207846521,-150.0,0.0001788,2]
[401432008,1768207846531,-500.0,0.0001788,2]
[401432009,1768207846540,-1977.11508,0.0001788,2]
[401432010,1768207846549,-25000.0,0.00017882,3]
[401432011,1768207846558,-150.0,0.00017887,2]
[401432012,1768207846568,-150.0,0.00017887,2]
[401432013,1768207846577,-1063.57,0.0001789,2]
[401432014,1768207846587,-331.18764993,0.00017891,2]
[401432015,1768207846596,-25000.0,0.00017891,3]
[401432016,1768207846605,-2247.8,0.00017894,2]
[401432017,1768207846614,-25000.0,0.000179,3]
[401432018,1768207846624,-1054.4366,0.000179,2]
[401432019,1768207846633,-1131.10845788,0.000179,2]
[401432020,1768207846642,-317.89217191,0.000179,2]
[401432021,1768207846651,-1200.72001256,0.000179,2]
[401432022,1768207846663,-1200.72001256,0.000179,2]
[401432023,1768207846673,-1200.72001256,0.000179,2]
[401432024,1768207846683,-1200.72001256,0.000179,2]
[401432025,1768207846695,-1000.0,0.000179,2]
[401432026,1768207846705,-14981.27545297,0.000179,3]
[401432027,1768207846715,-1200.72001256,0.000179,2]
[401432028,1768207846726,-1200.72001256,0.000179,2]
[401432029,1768207846735,-1200.72001256,0.000179,2]
[401432030,1768207846744,-1200.72001256,0.000179,2]
[401432031,1768207846753,-1038.0,0.000179,6]
[401432032,1768207846763,-1200.72001256,0.000179,2]
[401432033,1768207846772,-1200.72001256,0.000179,2]
[401432034,1768207846782,-1200.72001256,0.000179,2]
[401432035,1768207846791,-1200.72001256,0.000179,2]
[401432036,1768207846800,-1200.72001256,0.000179,2]
[401432037,1768207846810,-696.76538345,0.000179,2]
[401432038,1768207846824,-2987.79350316,0.000179,2]
[401432039,1768207846834,-637.33617149,0.000179,2]
[401432040,1768207846843,-500.0,0.000179,2]
[401432041,1768207846854,-500.0,0.000179,2]
[401432042,1768207846865,-500.0,0.000179,2]
[401432043,1768207846876,-500.0,0.000179,2]
[401432044,1768207846885,-500.0,0.000179,2]
[401432045,1768207846895,-500.0,0.000179,2]
[401432046,1768207846906,-500.0,0.000179,2]
[401432047,1768207846916,-500.0,0.000179,2]
[401432048,1768207846925,-500.0,0.000179,2]
[401432049,1768207846934,-500.0,0.000179,2]
[401432050,1768207846943,-500.0,0.000179,2]
[401432051,1768207846952,-500.0,0.000179,2]
[401432052,1768207846961,-500.0,0.000179,2]
[401432053,1768207846971,-500.0,0.000179,2]
[401432054,1768207846981,-500.0,0.000179,2]
[401432055,1768207846990,-500.0,0.000179,2]
[401432056,1768207846999,-500.0,0.000179,2]
[401432057,1768207847009,-500.0,0.000179,2]
[401432058,1768207847018,-500.0,0.000179,2]
[401432059,1768207847028,-500.0,0.000179,2]
[401432060,1768207847038,-500.0,0.000179,2]
[401432061,1768207847048,-500.0,0.000179,2]
[401432062,1768207847057,-500.0,0.000179,2]
[401432063,1768207847066,-500.0,0.000179,2]
[401432064,1768207847075,-500.0,0.000179,2]
[401432065,1768207847084,-500.0,0.000179,2]
[401432066,1768207847094,-500.0,0.000179,2]
[401432067,1768207847102,-500.0,0.000179,2]
[401432068,1768207847112,-500.0,0.000179,2]
[401432069,1768207847123,-500.0,0.000179,2]
[401432070,1768207847133,-500.0,0.000179,2]
[401432071,1768207847142,-500.0,0.000179,2]
[401432072,1768207847151,-500.0,0.000179,2]
[401432073,1768207847160,-500.0,0.000179,2]
[401432074,1768207847169,-500.0,0.000179,2]
[401432075,1768207847179,-500.0,0.000179,2]
[401432076,1768207847188,-500.0,0.000179,2]
[401432077,1768207847198,-500.0,0.000179,2]
[401432078,1768207847209,-500.0,0.000179,2]
[401432079,1768207847217,-500.0,0.000179,2]
[401432080,1768207847226,-500.0,0.000179,2]
[401432081,1768207847235,-500.0,0.000179,2]
[401432082,1768207847244,-500.0,0.000179,2]
[401432083,1768207847253,-500.0,0.000179,2]
[401432084,1768207847262,-500.0,0.000179,2]
[401432085,1768207847274,-500.0,0.000179,2]
[401432086,1768207847284,-301.9716591,0.000179,2]
[401432087,1768207847293,-9694.0,0.000179,2]
[401432088,1768207847302,-331.18764993,0.00017909,2]
[401432089,1768207847311,-150.0,0.0001791,2]
[401432090,1768207847320,-1977.11509,0.0001791,2]
[401432091,1768207847330,-1000.0,0.00017915,2]
[401432092,1768207847339,-150.0,0.00017925,2]
[401432093,1768207847349,-150.0,0.00017925,2]
[401432094,1768207847359,-331.18764993,0.00017927,2]
[401432095,1768207847370,-6077.0,0.00017945,2]
[401432096,1768207847381,-331.18764993,0.00017945,2]
[401432097,1768207847391,-331.18764993,0.00017964,2]
[401432098,1768207847400,-500.0,0.00017973,2]
[401432099,1768207847410,-381.34584895,0.00017973,2]
[401432100,1768207847420,-502.23302881,0.00017973,2]
[401432101,1768207847430,-501.12911319,0.00017973,2]
[401432102,1768207847440,-501.47661499,0.00017973,2]
[401432103,1768207847450,-503.85916191,0.00017973,2]
[401432104,1768207847462,-501.78685961,0.00017973,2]
[401432105,1768207847472,-500.55153068,0.00017973,2]
[401432106,1768207847482,-503.67264874,0.00017973,2]
[401432107,1768207847492,-501.38258594,0.00017973,2]
[401432108,1768207847501,-501.10571804,0.00017973,2]
[401432109,1768207847510,-500.0,0.00017973,2]
[401432110,1768207847519,-515.69548792,0.00017973,2]
[401432111,1768207847528,-498.39272947,0.00017973,2]
[401432112,1768207847538,-502.86808452,0.00017973,2]
[401432113,1768207847547,-500.0,0.00017973,2]
[401432114,1768207847556,-644.05438872,0.00017973,2]
[401432115,1768207847565,-500.0,0.00017973,2]
[401432116,1768207847574,-500.0,0.00017973,2]
[401432117,1768207847583,-331.18764993,0.00017982,2]
[401432118,1768207847593,-152.92662848,0.00017982,2]
[401432119,1768207847602,-500.0,0.00017982,2]
[401432120,1768207847611,-1047.04298225,0.0001799,2]
[401432121,1768207847620,-1047.04298225,0.0001799,2]
[401432122,1768207847631,-500.0,0.00017999,2]
[401432123,1768207847640,-500.0,0.00017999,2]
[401432124,1768207847649,-500.0,0.00017999,2]
[401432125,1768207847658,-500.0,0.00017999,2]
[401432126,1768207847667,-500.0,0.00017999,2]
[401432127,1768207847677,-456.07319796,0.00017999,2]
[401432128,1768207847687,-300.0,0.00017999,2]
[401432129,1768207847696,-359.08313245,0.00017999,2]
[401432130,1768207847705,-300.0,0.00017999,2]
[401432131,1768207847714,-300.0,0.00017999,2]
[401432132,1768207847723,-300.0,0.00017999,2]
[401432133,1768207847733,-666.0,0.00017999,2]
[401432134,1768207847743,-300.0,0.00017999,2]
[401432135,1768207847752,-666.0,0.00017999,2]
[401432136,1768207847761,-1063.57,0.00017999,2]
[401432137,1768207847770,-1063.57,0.00017999,2]
[401432138,1768207847780,-1063.57,0.00017999,2]
[401432139,1768207847789,-1063.57,0.00017999,2]
[401432140,1768207847799,-1063.57,0.00017999,2]
[401432141,1768207847808,-1063.57,0.00017999,2]
[401432142,1768207847817,-1063.57,0.00017999,2]
[401432143,1768207847830,-1063.57,0.00017999,2]
[401432144,1768207847839,-1063.57,0.00017999,2]
[401432145,1768207847849,-1063.66509882,0.00017999,2]
[401432146,1768207847858,-156.71525667,0.00018,2]
[401432147,1768207847869,-263.65847092,0.00018,2]
[401432148,1768207847879,-154.38953807,0.00018,2]
[401432149,1768207847889,-331.18764993,0.00018,2]
[401432150,1768207847900,-151.45444701,0.00018,2]
[401432151,1768207847910,-155.07098725,0.00018,2]